{"text_format":"2","workbook":"xlsx","n_sheets":2,"sheets":["Összesítő","Erősáram"],"not_rendered":{"charts":0,"images":0,"macros":0,"external_links":0,"defined_names":0,"comments":0,"pivot_tables":0},"unopened":[],"bounds":{"document_bytes":16777216,"sheet_cells":100000,"run_cost":"one","rows_first":2000,"rows_last":500,"rows_between":2000,"halvings":0,"cell_chars":16384,"cell_head_chars":4096},"cells_cut":0,"cells_raw":0,"read":"whole","date_system":"1900"}

{"sheet":"Összesítő","index":0,"n_rows":11,"n_cols":5,"rows_kept":11,"cut":false,"hidden":false,"merged":[]}
[]
[null,null,null,"ÖSSZESÍTŐ"]
[]
[null,null,"SZTE TTIK mikrobiológiai Intézet 522. sz. labor elektromos szerelés"]
[]
[]
[]
[null,null,"Anyag","Díj","Összesen"]
[]
[]
[null,"Erősáram",{"$f":"Erősáram!G22","v":0},{"$f":"Erősáram!H22","v":0},{"$f":"C11+D11","v":0}]

{"sheet":"Erősáram","index":1,"n_rows":25,"n_cols":8,"rows_kept":25,"cut":false,"hidden":false,"merged":[[24,6,24,7]]}
[]
[null,null,null,"               KÖLTSÉGVETÉS"]
[]
[null,null,"Bólyai épület alagsor AS 30 helyiség elektromos"]
[]
[]
[]
[]
["S.sz","Megnevezés","Menny.","Me","Anyag","Díj","Anyag Ö","Díj Ö"]
[]
[]
[1,"DLP csatorna elhelyezése 60X40 mm",50,"m",null,null,{"$f":"C12*E12","v":0},{"$f":"C12*F12","v":0}]
[2,"Mkh 25 mm2 vezeték, MÜ csatornába szerelve",25,"m",null,null,0,0]
[3,"NYM 3x2,5mm2 kiskábel",100,"m",null,null,0,0]
[4,"NYM 3x6mm2 kiskábel",25,"m",null,null,0,0]
[5,"2+F fehér dugalj falon kívül szerelve",4,"db",null,null,0,0]
[6,"Ipari csatlakozó 3 pólusú 32 A-es, falon kívül szerelve",1,"db",null,null,0,0]
[7,"Főelosztóban szükséges leágazások kiépítése:1 db 40A, 30mA-es 2 pólusú ÁVK, 1db C32A 3 p. kismegszakító",1,"klt",null,null,0,0]
[8,"Meglévő alelosztóba  beleépítve: 3 db 25A 30mA 2 p. ÁVK, 4 db C16 A 1 p. kismegszakító.",1,"db",null,null,0,0]
[9,"100 A-es földelési csatlakozó kiépítése, 4 db csatlakozási hellyel.",1,"db",null,null,0,0]
[10,"Érintésvédelmi mérés jegyzőkönyv készítéssel",1,"klt",null,null,0,0]
[null,"ÖSSZESEN:",{"$nulls":4},{"$f":"SUM(G11:G21)","v":0},{"$f":"SUM(H11:H21)","v":0}]
[]
[]
[{"$nulls":6},{"$f":"G22+H22","v":0}]